[Event "Early-Titled-Tuesday-Blitz-October-10-2023"]
[Site "Chess.com"]
[Date "2023.10.10"]
[Round "8"]
[White "MightyGMpretender"]
[Black "lefonghua"]
[Result "1-0"]
[WhiteElo "2752"]
[BlackElo "2606"]
[TimeControl "180+1"]
[EndTime "9:27:46 PDT"]
[Termination "MightyGMpretender won by resignation"]

1. e4 {[%clk 0:02:54.9]} 1... c5 {[%clk 0:02:59.7]} 2. Nc3 {[%clk 0:02:50.6]}
2... g6 {[%clk 0:02:59.8]} 3. d4 {[%clk 0:02:50]} 3... cxd4 {[%clk 0:02:59.6]}
4. Qxd4 {[%clk 0:02:50.9]} 4... Nf6 {[%clk 0:02:59.7]} 5. Be3 {[%clk 0:02:51.5]}
5... Nc6 {[%clk 0:02:59.7]} 6. Qd2 {[%clk 0:02:51.5]} 6... d6 {[%clk 0:03:00]}
7. f3 {[%clk 0:02:51.4]} 7... Bg7 {[%clk 0:03:00.1]} 8. Bc4 {[%clk 0:02:47.6]}
8... Bd7 {[%clk 0:02:56.1]} 9. Nge2 {[%clk 0:02:45.8]} 9... Qa5 {[%clk
0:02:53.4]} 10. Bh6 {[%clk 0:02:32.3]} 10... O-O {[%clk 0:02:48.5]} 11. O-O-O
{[%clk 0:02:26.3]} 11... Rfc8 {[%clk 0:02:46.3]} 12. Bb3 {[%clk 0:02:25.2]}
12... b5 {[%clk 0:02:37.8]} 13. h4 {[%clk 0:02:20.3]} 13... b4 {[%clk
0:02:37.8]} 14. Nd5 {[%clk 0:02:19.6]} 14... Nxd5 {[%clk 0:02:27.7]} 15. exd5
{[%clk 0:02:16.8]} 15... Ne5 {[%clk 0:02:27.7]} 16. Bxg7 {[%clk 0:02:08.6]}
16... Kxg7 {[%clk 0:02:28]} 17. h5 {[%clk 0:02:08.4]} 17... Bf5 {[%clk
0:02:12.3]} 18. Nd4 {[%clk 0:01:48.5]} 18... Rh8 {[%clk 0:01:48.5]} 19. Qg5
{[%clk 0:01:34]} 19... Kf8 {[%clk 0:01:42.5]} 20. Nxf5 {[%clk 0:01:26.8]} 20...
gxf5 {[%clk 0:01:41.7]} 21. Qxf5 {[%clk 0:01:27.3]} 21... Qc7 {[%clk 0:01:33.4]}
22. f4 {[%clk 0:01:22.4]} 22... Nc4 {[%clk 0:01:32.2]} 23. Rd4 {[%clk
0:01:17.3]} 23... Nxb2 {[%clk 0:01:29]} 24. Rh3 {[%clk 0:01:00.5]} 24... Qc5
{[%clk 0:01:09.1]} 25. Qe4 {[%clk 0:00:54.2]} 25... a5 {[%clk 0:01:08.4]} 26.
Kxb2 {[%clk 0:00:54.2]} 26... a4 {[%clk 0:01:08.1]} 27. Re3 {[%clk 0:00:43.8]}
27... Qc7 {[%clk 0:00:42.3]} 28. Bc4 {[%clk 0:00:40.4]} 28... Rg8 {[%clk
0:00:38]} 29. Bb5 {[%clk 0:00:28.1]} 29... a3+ {[%clk 0:00:32.5]} 30. Kb1 {[%clk
0:00:25.8]} 30... Rb8 {[%clk 0:00:32.1]} 31. Bc6 {[%clk 0:00:24]} 31... Qa7
{[%clk 0:00:26.7]} 32. g3 {[%clk 0:00:16.9]} 32... h6 {[%clk 0:00:23.4]} 33. Kc1
{[%clk 0:00:15.7]} 33... Rg4 {[%clk 0:00:16.8]} 34. Kd1 {[%clk 0:00:14.6]} 34...
Rg7 {[%clk 0:00:12.9]} 35. Ke2 {[%clk 0:00:14.6]} 35... Qc7 {[%clk 0:00:13.2]}
36. Kf2 {[%clk 0:00:14.3]} 36... Qa7 {[%clk 0:00:11.8]} 37. Kg2 {[%clk
0:00:10.2]} 37... Rc8 {[%clk 0:00:12.3]} 38. Kh2 {[%clk 0:00:10.1]} 38... Rc7
{[%clk 0:00:12.9]} 39. Re2 {[%clk 0:00:10.3]} 39... Qc5 {[%clk 0:00:11.3]} 40.
Rxb4 {[%clk 0:00:09.7]} 40... Qa7 {[%clk 0:00:07.8]} 41. Rb3 {[%clk 0:00:09.9]}
41... Kg8 {[%clk 0:00:06.1]} 42. Qf5 {[%clk 0:00:09.9]} 42... Kh8 {[%clk
0:00:05.4]} 43. Qe4 {[%clk 0:00:10.1]} 43... Kg8 {[%clk 0:00:01.5]} 44. Qb4
{[%clk 0:00:10.7]} 44... Kh8 {[%clk 0:00:01.4]} 45. Qb8+ {[%clk 0:00:11]} 45...
Qxb8 {[%clk 0:00:02]} 46. Rxb8+ {[%clk 0:00:11.5]} 46... Rg8 {[%clk 0:00:02.9]}
47. Rb3 {[%clk 0:00:12]} 47... Rf8 {[%clk 0:00:01.9]} 48. c4 {[%clk 0:00:12.4]}
48... Kg7 {[%clk 0:00:02]} 49. Rxa3 {[%clk 0:00:12.9]} 49... Kf6 {[%clk
0:00:02.3]} 50. Rb3 {[%clk 0:00:13.5]} 50... Rg8 {[%clk 0:00:01.9]} 51. a4
{[%clk 0:00:13.8]} 51... Rcc8 {[%clk 0:00:01.7]} 52. a5 {[%clk 0:00:14.2]} 52...
Rc7 {[%clk 0:00:02.4]} 53. a6 {[%clk 0:00:14.5]} 53... Ra7 {[%clk 0:00:03.2]}
54. Bb7 {[%clk 0:00:15]} 54... Rxb7 {[%clk 0:00:03.3]} 55. axb7 {[%clk
0:00:15.1]} 1-0

[Event "Early-Titled-Tuesday-Blitz-October-10-2023"]
[Site "Chess.com"]
[Date "2023.10.10"]
[Round "8"]
[White "Rutricks"]
[Black "ural58"]
[Result "1-0"]
[WhiteElo "2682"]
[BlackElo "2510"]
[TimeControl "180+1"]
[EndTime "9:27:50 PDT"]
[Termination "Rutricks won on time"]

1. d4 {[%clk 0:02:51.6]} 1... d5 {[%clk 0:02:57.6]} 2. g3 {[%clk 0:02:46.6]}
2... Nc6 {[%clk 0:02:55.3]} 3. Bg2 {[%clk 0:02:47.2]} 3... Bf5 {[%clk
0:02:55.6]} 4. c4 {[%clk 0:02:47.6]} 4... e6 {[%clk 0:02:55.1]} 5. a3 {[%clk
0:02:47.6]} 5... Nf6 {[%clk 0:02:23.3]} 6. Nc3 {[%clk 0:02:47.5]} 6... Be7
{[%clk 0:02:18.3]} 7. Nf3 {[%clk 0:02:17.4]} 7... Ne4 {[%clk 0:02:17.1]} 8. cxd5
{[%clk 0:02:03.2]} 8... Nxc3 {[%clk 0:02:14.7]} 9. Qb3 {[%clk 0:02:03.9]} 9...
Nxd5 {[%clk 0:02:13.3]} 10. Qxb7 {[%clk 0:01:55.3]} 10... Na5 {[%clk 0:01:56.6]}
11. Qb5+ {[%clk 0:01:55.7]} 11... c6 {[%clk 0:01:56.7]} 12. Qa4 {[%clk
0:01:56.6]} 12... O-O {[%clk 0:01:51.7]} 13. Ne5 {[%clk 0:01:52.5]} 13... f6
{[%clk 0:01:46.5]} 14. Bd2 {[%clk 0:01:24]} 14... fxe5 {[%clk 0:01:22.1]} 15.
Bxa5 {[%clk 0:01:24.7]} 15... Nb6 {[%clk 0:01:20.4]} 16. Qxc6 {[%clk 0:01:23.8]}
16... Rc8 {[%clk 0:01:12.1]} 17. Qb7 {[%clk 0:01:21.7]} 17... Rc7 {[%clk
0:00:51]} 18. Qa6 {[%clk 0:01:21.7]} 18... exd4 {[%clk 0:00:48.6]} 19. O-O
{[%clk 0:01:22]} 19... Qc8 {[%clk 0:00:42.6]} 20. Qb5 {[%clk 0:01:21.7]} 20...
Rc5 {[%clk 0:00:39.9]} 21. Qb4 {[%clk 0:01:22.2]} 21... Nd5 {[%clk 0:00:28.5]}
22. Qd2 {[%clk 0:01:21.5]} 22... Qa6 {[%clk 0:00:20.5]} 23. b4 {[%clk
0:01:20.9]} 23... Rcc8 {[%clk 0:00:16.6]} 24. Rae1 {[%clk 0:00:34]} 24... Nc3
{[%clk 0:00:16.2]} 25. e4 {[%clk 0:00:30]} 25... Bg6 {[%clk 0:00:15.5]} 26. Bh3
{[%clk 0:00:20.9]} 26... Nxe4 {[%clk 0:00:09.7]} 27. Qxd4 {[%clk 0:00:20.4]}
27... Bf6 {[%clk 0:00:09.1]} 28. Qe3 {[%clk 0:00:14.4]} 28... Ng5 {[%clk
0:00:09.5]} 29. Bg4 {[%clk 0:00:13.7]} 29... Rce8 {[%clk 0:00:08.2]} 30. h4
{[%clk 0:00:13]} 30... Nf7 {[%clk 0:00:07.7]} 31. Bxe6 {[%clk 0:00:12.5]} 31...
Kh8 {[%clk 0:00:07.5]} 32. Qb3 {[%clk 0:00:12.3]} 32... Nd8 {[%clk 0:00:07]} 33.
Bc4 {[%clk 0:00:12.5]} 33... Qb7 {[%clk 0:00:06.6]} 34. Bd5 {[%clk 0:00:08.9]}
34... Qc8 {[%clk 0:00:06.1]} 35. Qa4 {[%clk 0:00:08.1]} 35... Rxe1 {[%clk
0:00:05.1]} 36. Rxe1 {[%clk 0:00:09]} 36... Nf7 {[%clk 0:00:05.1]} 37. Bg2
{[%clk 0:00:04.8]} 37... Nh6 {[%clk 0:00:05.2]} 38. Qb5 {[%clk 0:00:04.4]} 38...
Qc3 {[%clk 0:00:05.6]} 39. Rf1 {[%clk 0:00:04.1]} 39... Rg8 {[%clk 0:00:05.9]}
40. Qb7 {[%clk 0:00:03.7]} 40... Bd4 {[%clk 0:00:06]} 41. Qf3 {[%clk 0:00:02.4]}
41... Bd3 {[%clk 0:00:04.9]} 42. Rd1 {[%clk 0:00:02.4]} 42... Ba6 {[%clk
0:00:02.8]} 43. Qxc3 {[%clk 0:00:01.2]} 43... Bxc3 {[%clk 0:00:03.1]} 44. Rd7
{[%clk 0:00:02.1]} 44... Bc4 {[%clk 0:00:01.7]} 45. Rc7 {[%clk 0:00:02.3]} 1-0

[Event "Early-Titled-Tuesday-Blitz-October-10-2023"]
[Site "Chess.com"]
[Date "2023.10.10"]
[Round "8"]
[White "DrVelja"]
[Black "K_A_S_T_O_R"]
[Result "1/2-1/2"]
[WhiteElo "2849"]
[BlackElo "2904"]
[TimeControl "180+1"]
[EndTime "9:27:52 PDT"]
[Termination "Game drawn by repetition"]

1. e4 {[%clk 0:03:00.9]} 1... c5 {[%clk 0:02:59.8]} 2. Nf3 {[%clk 0:03:01]} 2...
d6 {[%clk 0:03:00.2]} 3. d4 {[%clk 0:03:00]} 3... cxd4 {[%clk 0:03:00.8]} 4.
Nxd4 {[%clk 0:03:00.9]} 4... Nf6 {[%clk 0:03:01.2]} 5. Nc3 {[%clk 0:03:01.5]}
5... a6 {[%clk 0:03:01.7]} 6. Rg1 {[%clk 0:03:00.5]} 6... g6 {[%clk 0:02:57.2]}
7. g4 {[%clk 0:02:58.4]} 7... Bg7 {[%clk 0:02:56.5]} 8. g5 {[%clk 0:02:56.4]}
8... Nfd7 {[%clk 0:02:56.4]} 9. h4 {[%clk 0:02:53.9]} 9... Nc6 {[%clk
0:02:53.7]} 10. Be3 {[%clk 0:02:54.4]} 10... Nde5 {[%clk 0:02:49]} 11. Be2
{[%clk 0:02:52.5]} 11... Na5 {[%clk 0:02:47.7]} 12. b3 {[%clk 0:02:49]} 12...
Nac6 {[%clk 0:02:14.2]} 13. Nd5 {[%clk 0:02:49.1]} 13... Nd7 {[%clk 0:02:10.4]}
14. Qd2 {[%clk 0:02:39.6]} 14... Nc5 {[%clk 0:01:53.4]} 15. f3 {[%clk
0:02:33.2]} 15... Ne6 {[%clk 0:01:40.1]} 16. c3 {[%clk 0:02:21.8]} 16... Nexd4
{[%clk 0:01:27.2]} 17. cxd4 {[%clk 0:02:21.3]} 17... e6 {[%clk 0:01:22]} 18.
Nf6+ {[%clk 0:02:15.2]} 18... Bxf6 {[%clk 0:01:16.6]} 19. gxf6 {[%clk
0:02:16.1]} 19... d5 {[%clk 0:01:08.7]} 20. O-O-O {[%clk 0:02:13.7]} 20... Qa5
{[%clk 0:01:04.2]} 21. Qxa5 {[%clk 0:02:03.3]} 21... Nxa5 {[%clk 0:01:04.3]} 22.
h5 {[%clk 0:01:52.7]} 22... Bd7 {[%clk 0:00:58.5]} 23. Rd2 {[%clk 0:01:19.8]}
23... Bb5 {[%clk 0:00:54.6]} 24. Bd1 {[%clk 0:01:20.1]} 24... O-O-O {[%clk
0:00:32.2]} 25. e5 {[%clk 0:01:17.5]} 25... Kb8 {[%clk 0:00:31.7]} 26. Kb2
{[%clk 0:01:17.3]} 26... Rc8 {[%clk 0:00:32]} 27. Rh2 {[%clk 0:01:15]} 27...
Rhf8 {[%clk 0:00:27.3]} 28. hxg6 {[%clk 0:01:11.2]} 28... hxg6 {[%clk
0:00:27.8]} 29. Rh7 {[%clk 0:01:11.7]} 29... Bd3 {[%clk 0:00:27.2]} 30. Rgh1
{[%clk 0:00:48.4]} 30... Rc7 {[%clk 0:00:19.5]} 31. Rh8 {[%clk 0:00:47.3]} 31...
Rxh8 {[%clk 0:00:19.3]} 32. Rxh8+ {[%clk 0:00:48.2]} 32... Ka7 {[%clk
0:00:19.8]} 33. Re8 {[%clk 0:00:40.8]} 33... Nc6 {[%clk 0:00:18.9]} 34. a3
{[%clk 0:00:33]} 34... Bf5 {[%clk 0:00:18.7]} 35. Bd2 {[%clk 0:00:13.7]} 35...
a5 {[%clk 0:00:14.5]} 36. b4 {[%clk 0:00:11.5]} 36... axb4 {[%clk 0:00:14.6]}
37. axb4 {[%clk 0:00:12.4]} 37... Kb6 {[%clk 0:00:15.1]} 38. Bc3 {[%clk
0:00:10.3]} 38... Na7 {[%clk 0:00:13.2]} 39. Re7 {[%clk 0:00:09]} 39... Nb5
{[%clk 0:00:13.4]} 40. Bd2 {[%clk 0:00:08.2]} 40... Na7 {[%clk 0:00:13.7]} 41.
Ba4 {[%clk 0:00:07.1]} 41... Nc6 {[%clk 0:00:13.1]} 42. Rxc7 {[%clk 0:00:03.7]}
42... Kxc7 {[%clk 0:00:12.5]} 43. Bxc6 {[%clk 0:00:04.2]} 43... Kxc6 {[%clk
0:00:12.6]} 44. Kc3 {[%clk 0:00:04.2]} 44... Kb5 {[%clk 0:00:12.5]} 45. f4
{[%clk 0:00:04.5]} 45... Be4 {[%clk 0:00:12.3]} 46. Bc1 {[%clk 0:00:05.4]} 46...
Bf5 {[%clk 0:00:12.8]} 47. Bb2 {[%clk 0:00:06.3]} 47... Be4 {[%clk 0:00:13.4]}
48. Bc1 {[%clk 0:00:06.8]} 48... Bf5 {[%clk 0:00:14]} 49. Bb2 {[%clk 0:00:07.4]}
49... Be4 {[%clk 0:00:14.4]} 50. Bc1 {[%clk 0:00:06.3]} 1/2-1/2

[Event "Early-Titled-Tuesday-Blitz-October-10-2023"]
[Site "Chess.com"]
[Date "2023.10.10"]
[Round "8"]
[White "Leonid_Starozhilov"]
[Black "SirStrateg"]
[Result "1-0"]
[WhiteElo "2746"]
[BlackElo "2586"]
[TimeControl "180+1"]
[EndTime "9:27:52 PDT"]
[Termination "Leonid_Starozhilov won by resignation"]

1. c4 {[%clk 0:03:00.9]} 1... e5 {[%clk 0:02:59.9]} 2. Nc3 {[%clk 0:03:00.4]}
2... Nf6 {[%clk 0:03:00.4]} 3. Nf3 {[%clk 0:03:00.5]} 3... Nc6 {[%clk
0:03:00.2]} 4. g3 {[%clk 0:02:59.7]} 4... Bb4 {[%clk 0:03:00.3]} 5. Qc2 {[%clk
0:02:57.7]} 5... d6 {[%clk 0:02:56.8]} 6. Bg2 {[%clk 0:02:57.7]} 6... O-O {[%clk
0:02:56.3]} 7. d3 {[%clk 0:02:56.8]} 7... h6 {[%clk 0:02:55.7]} 8. O-O {[%clk
0:02:56.6]} 8... Re8 {[%clk 0:02:47.8]} 9. e4 {[%clk 0:02:52.5]} 9... Bg4 {[%clk
0:02:46.3]} 10. Be3 {[%clk 0:02:45.3]} 10... Bxf3 {[%clk 0:02:31.9]} 11. Bxf3
{[%clk 0:02:46.2]} 11... Bc5 {[%clk 0:02:32]} 12. Kg2 {[%clk 0:02:36]} 12... a5
{[%clk 0:02:28.2]} 13. a3 {[%clk 0:02:35.3]} 13... Nd4 {[%clk 0:02:25.2]} 14.
Qd1 {[%clk 0:02:32.8]} 14... c6 {[%clk 0:02:20.9]} 15. Rb1 {[%clk 0:02:29.9]}
15... Ba7 {[%clk 0:01:48.5]} 16. h3 {[%clk 0:02:25.4]} 16... Nh7 {[%clk
0:01:47.1]} 17. Bg4 {[%clk 0:02:19.6]} 17... Ne6 {[%clk 0:01:27.6]} 18. Bxe6
{[%clk 0:02:10]} 18... Rxe6 {[%clk 0:01:27]} 19. Bxa7 {[%clk 0:01:57.8]} 19...
Rxa7 {[%clk 0:01:27.4]} 20. d4 {[%clk 0:01:58.4]} 20... Qc7 {[%clk 0:01:13.9]}
21. d5 {[%clk 0:01:50.2]} 21... Re8 {[%clk 0:01:08.7]} 22. Qd3 {[%clk
0:01:47.2]} 22... Raa8 {[%clk 0:01:08.8]} 23. Rfd1 {[%clk 0:01:44.7]} 23... Red8
{[%clk 0:00:59]} 24. dxc6 {[%clk 0:01:35.5]} 24... bxc6 {[%clk 0:00:59.3]} 25.
b4 {[%clk 0:01:36]} 25... axb4 {[%clk 0:00:59.1]} 26. axb4 {[%clk 0:01:36.9]}
26... Nf6 {[%clk 0:00:55.5]} 27. Rb3 {[%clk 0:01:22]} 27... Qb7 {[%clk
0:00:30.9]} 28. b5 {[%clk 0:01:18]} 28... cxb5 {[%clk 0:00:31.4]} 29. cxb5
{[%clk 0:01:18.4]} 29... Rac8 {[%clk 0:00:19.6]} 30. Nd5 {[%clk 0:01:10.1]}
30... Ne8 {[%clk 0:00:19.6]} 31. b6 {[%clk 0:01:06.4]} 31... Nf6 {[%clk
0:00:16.3]} 32. Nxf6+ {[%clk 0:01:04.3]} 32... gxf6 {[%clk 0:00:16.3]} 33. Qd5
{[%clk 0:01:05]} 33... Rb8 {[%clk 0:00:15.4]} 34. Rc1 {[%clk 0:00:49.1]} 34...
Qxd5 {[%clk 0:00:13.6]} 35. exd5 {[%clk 0:00:49.5]} 35... Rb7 {[%clk 0:00:11.4]}
36. Rc7 {[%clk 0:00:48.3]} 36... Rdb8 {[%clk 0:00:10.1]} 37. Rxb7 {[%clk
0:00:43.3]} 37... Rxb7 {[%clk 0:00:10.5]} 38. g4 {[%clk 0:00:43.7]} 38... f5
{[%clk 0:00:08.1]} 39. gxf5 {[%clk 0:00:43.6]} 39... Kg7 {[%clk 0:00:08.8]} 40.
Kf3 {[%clk 0:00:40.6]} 40... Kf6 {[%clk 0:00:09.3]} 41. Ke4 {[%clk 0:00:41.1]}
41... Kg5 {[%clk 0:00:10]} 42. f6 {[%clk 0:00:17.6]} 42... Kxf6 {[%clk
0:00:09.5]} 43. f4 {[%clk 0:00:18.3]} 43... exf4 {[%clk 0:00:09.8]} 44. Kxf4
{[%clk 0:00:18.9]} 44... Kg6 {[%clk 0:00:09.7]} 45. Ke4 {[%clk 0:00:15.1]} 45...
f5+ {[%clk 0:00:08.4]} 46. Kd4 {[%clk 0:00:15.2]} 46... Kg5 {[%clk 0:00:06.4]}
47. Kc4 {[%clk 0:00:15.7]} 47... f4 {[%clk 0:00:07]} 48. Kb5 {[%clk 0:00:16.2]}
48... Kf5 {[%clk 0:00:05.9]} 49. Kc6 {[%clk 0:00:16.5]} 49... Rb8 {[%clk
0:00:06.2]} 50. Kxd6 {[%clk 0:00:13.2]} 50... Ke4 {[%clk 0:00:04.4]} 51. Kc7
{[%clk 0:00:13.5]} 51... Rxb6 {[%clk 0:00:02.8]} 52. Rxb6 {[%clk 0:00:12.9]}
52... Kxd5 {[%clk 0:00:03.5]} 53. Rxh6 {[%clk 0:00:13.2]} 53... Ke4 {[%clk
0:00:04.1]} 54. Rf6 {[%clk 0:00:13.4]} 54... f3 {[%clk 0:00:04.4]} 55. h4 {[%clk
0:00:14]} 1-0

[Event "Early-Titled-Tuesday-Blitz-October-10-2023"]
[Site "Chess.com"]
[Date "2023.10.10"]
[Round "8"]
[White "Grossboss19"]
[Black "Aleksandar-Topalov"]
[Result "1-0"]
[WhiteElo "2519"]
[BlackElo "2383"]
[TimeControl "180+1"]
[EndTime "9:27:52 PDT"]
[Termination "Grossboss19 won on time"]

1. Nf3 {[%clk 0:02:57.5]} 1... Nf6 {[%clk 0:02:58.4]} 2. g3 {[%clk 0:02:53.5]}
2... g6 {[%clk 0:02:56.6]} 3. Bg2 {[%clk 0:02:52.6]} 3... Bg7 {[%clk 0:02:57]}
4. O-O {[%clk 0:02:53.5]} 4... O-O {[%clk 0:02:57]} 5. c4 {[%clk 0:02:49.1]}
5... d6 {[%clk 0:02:56.9]} 6. d4 {[%clk 0:02:44.4]} 6... Nbd7 {[%clk 0:02:48.5]}
7. b3 {[%clk 0:02:39.6]} 7... c5 {[%clk 0:02:47.4]} 8. Bb2 {[%clk 0:02:34.6]}
8... cxd4 {[%clk 0:02:47.4]} 9. Bxd4 {[%clk 0:02:24.9]} 9... Nc5 {[%clk
0:02:42.4]} 10. e3 {[%clk 0:02:22.9]} 10... Bf5 {[%clk 0:02:36.4]} 11. Nbd2
{[%clk 0:02:19.8]} 11... a5 {[%clk 0:02:07]} 12. Nh4 {[%clk 0:02:12.1]} 12...
Bg4 {[%clk 0:02:00.5]} 13. f3 {[%clk 0:02:06.6]} 13... Bd7 {[%clk 0:01:53]} 14.
e4 {[%clk 0:01:58.7]} 14... Qb6 {[%clk 0:01:27.8]} 15. Kh1 {[%clk 0:01:54.9]}
15... a4 {[%clk 0:01:24]} 16. Qc2 {[%clk 0:01:42.9]} 16... axb3 {[%clk
0:01:22.4]} 17. axb3 {[%clk 0:01:43.8]} 17... Bc6 {[%clk 0:01:11.2]} 18. Qb2
{[%clk 0:01:35.8]} 18... Nh5 {[%clk 0:00:47.9]} 19. Bxg7 {[%clk 0:01:30.9]}
19... Nxg7 {[%clk 0:00:47.9]} 20. Qc3 {[%clk 0:01:23.5]} 20... Na6 {[%clk
0:00:43.6]} 21. f4 {[%clk 0:01:16.1]} 21... Nb4 {[%clk 0:00:36.2]} 22. Nhf3
{[%clk 0:01:12.5]} 22... Ne6 {[%clk 0:00:33.7]} 23. f5 {[%clk 0:01:07.7]} 23...
Nc5 {[%clk 0:00:33.2]} 24. Nd4 {[%clk 0:01:00.8]} 24... Nbd3 {[%clk 0:00:22.5]}
25. f6 {[%clk 0:00:42.9]} 25... e5 {[%clk 0:00:21.4]} 26. Nxc6 {[%clk
0:00:35.3]} 26... bxc6 {[%clk 0:00:21.5]} 27. h4 {[%clk 0:00:30.4]} 27... Qb4
{[%clk 0:00:17]} 28. Qc2 {[%clk 0:00:26.7]} 28... Ra3 {[%clk 0:00:14.3]} 29.
Rxa3 {[%clk 0:00:25.6]} 29... Qxa3 {[%clk 0:00:14.6]} 30. Rf3 {[%clk 0:00:20.3]}
30... Qa1+ {[%clk 0:00:13.4]} 31. Kh2 {[%clk 0:00:17.6]} 31... Qd4 {[%clk
0:00:13]} 32. Bf1 {[%clk 0:00:15]} 32... Nb4 {[%clk 0:00:12.3]} 33. Qc3 {[%clk
0:00:12.9]} 33... Qxc3 {[%clk 0:00:11]} 34. Rxc3 {[%clk 0:00:13.8]} 34... Ra8
{[%clk 0:00:10.5]} 35. Kh3 {[%clk 0:00:10.1]} 35... Ra2 {[%clk 0:00:10]} 36. Nf3
{[%clk 0:00:10]} 36... h6 {[%clk 0:00:10.5]} 37. h5 {[%clk 0:00:08.8]} 37... g5
{[%clk 0:00:10]} 38. Kg4 {[%clk 0:00:09.1]} 38... Ra1 {[%clk 0:00:08.7]} 39. Bg2
{[%clk 0:00:08.1]} 39... Ra2 {[%clk 0:00:08]} 40. Bf1 {[%clk 0:00:07.5]} 40...
Nxe4 {[%clk 0:00:07.5]} 41. Re3 {[%clk 0:00:06.9]} 41... Nf2+ {[%clk 0:00:07.4]}
42. Kf5 {[%clk 0:00:06.9]} 42... d5 {[%clk 0:00:03]} 43. Rxe5 {[%clk 0:00:04.7]}
43... Kf8 {[%clk 0:00:02.7]} 44. cxd5 {[%clk 0:00:03.9]} 44... Nxd5 {[%clk
0:00:03]} 45. Bc4 {[%clk 0:00:03.8]} 45... g4 {[%clk 0:00:02.8]} 46. Nh4 {[%clk
0:00:02.7]} 46... Nh3 {[%clk 0:00:02.5]} 47. Bxd5 {[%clk 0:00:02.9]} 47... Rf2+
{[%clk 0:00:01.6]} 48. Kxg4 {[%clk 0:00:03.4]} 48... Ng5 {[%clk 0:00:01.4]} 49.
Bxc6 {[%clk 0:00:03.4]} 1-0

[Event "Early-Titled-Tuesday-Blitz-October-10-2023"]
[Site "Chess.com"]
[Date "2023.10.10"]
[Round "8"]
[White "GMKrikor"]
[Black "Harry_Rakkel"]
[Result "0-1"]
[WhiteElo "2826"]
[BlackElo "2647"]
[TimeControl "180+1"]
[EndTime "9:27:54 PDT"]
[Termination "Harry_Rakkel won on time"]

1. Nf3 {[%clk 0:03:00.9]} 1... Nf6 {[%clk 0:02:59.3]} 2. c4 {[%clk 0:03:00.6]}
2... e6 {[%clk 0:02:57]} 3. Nc3 {[%clk 0:03:00.5]} 3... Bb4 {[%clk 0:02:55.8]}
4. Qc2 {[%clk 0:02:58.4]} 4... c5 {[%clk 0:02:34.5]} 5. a3 {[%clk 0:02:56.1]}
5... Bxc3 {[%clk 0:02:33.1]} 6. Qxc3 {[%clk 0:02:57]} 6... b6 {[%clk 0:02:30.1]}
7. b3 {[%clk 0:02:56.6]} 7... Bb7 {[%clk 0:02:29.3]} 8. Bb2 {[%clk 0:02:57.3]}
8... O-O {[%clk 0:02:27.6]} 9. e3 {[%clk 0:02:56.7]} 9... d5 {[%clk 0:02:23.3]}
10. Be2 {[%clk 0:02:50.3]} 10... Nc6 {[%clk 0:02:18.5]} 11. O-O {[%clk
0:02:46.2]} 11... Rc8 {[%clk 0:02:17.6]} 12. Rfd1 {[%clk 0:02:42.8]} 12... Qe7
{[%clk 0:02:16.9]} 13. cxd5 {[%clk 0:02:14.8]} 13... exd5 {[%clk 0:02:15.1]} 14.
d4 {[%clk 0:02:15.5]} 14... Ne4 {[%clk 0:02:03.8]} 15. Qe1 {[%clk 0:01:51.2]}
15... Na5 {[%clk 0:01:52.4]} 16. dxc5 {[%clk 0:01:48.8]} 16... Nxb3 {[%clk
0:01:45.6]} 17. cxb6 {[%clk 0:01:25.2]} 17... Nxa1 {[%clk 0:01:42.3]} 18. Rxa1
{[%clk 0:01:20.9]} 18... axb6 {[%clk 0:01:38.3]} 19. Bd4 {[%clk 0:01:21.1]}
19... Ra8 {[%clk 0:01:21.9]} 20. Qc1 {[%clk 0:01:19]} 20... Nd6 {[%clk
0:01:10.8]} 21. Qb2 {[%clk 0:01:16.3]} 21... Nf5 {[%clk 0:01:10]} 22. Bxb6
{[%clk 0:01:16.6]} 22... Rfb8 {[%clk 0:01:07.6]} 23. a4 {[%clk 0:01:09.8]} 23...
d4 {[%clk 0:01:01.7]} 24. a5 {[%clk 0:00:57.8]} 24... dxe3 {[%clk 0:00:44.6]}
25. Qe5 {[%clk 0:00:58]} 25... exf2+ {[%clk 0:00:38.1]} 26. Kxf2 {[%clk
0:00:54.2]} 26... Re8 {[%clk 0:00:33.4]} 27. Qxe7 {[%clk 0:00:47.7]} 27... Rxe7
{[%clk 0:00:32.8]} 28. Bd3 {[%clk 0:00:46]} 28... Nd6 {[%clk 0:00:26.1]} 29. Bc5
{[%clk 0:00:46.5]} 29... Ne4+ {[%clk 0:00:26]} 30. Bxe4 {[%clk 0:00:39.2]} 30...
Rxe4 {[%clk 0:00:26.9]} 31. Bb6 {[%clk 0:00:34.1]} 31... Ba6 {[%clk 0:00:24.7]}
32. Nd4 {[%clk 0:00:32.3]} 32... Rae8 {[%clk 0:00:19.8]} 33. h3 {[%clk
0:00:30.5]} 33... h5 {[%clk 0:00:19]} 34. Kg3 {[%clk 0:00:26.2]} 34... h4+
{[%clk 0:00:18.5]} 35. Kh2 {[%clk 0:00:26.8]} 35... Rc8 {[%clk 0:00:11.3]} 36.
Nf5 {[%clk 0:00:25.4]} 36... Rc2 {[%clk 0:00:09.7]} 37. Rg1 {[%clk 0:00:16.5]}
37... g6 {[%clk 0:00:08.9]} 38. Nd4 {[%clk 0:00:14.5]} 38... Ra2 {[%clk
0:00:07.8]} 39. Nf3 {[%clk 0:00:14.8]} 39... Bb7 {[%clk 0:00:07]} 40. Bd8 {[%clk
0:00:05.2]} 40... Rc4 {[%clk 0:00:06.4]} 41. Nxh4 {[%clk 0:00:04.8]} 41... Rd4
{[%clk 0:00:06.6]} 42. Bf6 {[%clk 0:00:04.6]} 42... Rf4 {[%clk 0:00:05.8]} 43.
Bg5 {[%clk 0:00:05.1]} 43... Rff2 {[%clk 0:00:04.8]} 44. Bd8 {[%clk 0:00:04.7]}
44... Rfd2 {[%clk 0:00:04.1]} 45. Bg5 {[%clk 0:00:04.2]} 45... Rd5 {[%clk
0:00:03.5]} 46. Bf6 {[%clk 0:00:04.2]} 46... g5 {[%clk 0:00:03.5]} 47. Nf3
{[%clk 0:00:04.1]} 47... Rf5 {[%clk 0:00:03.8]} 48. Nxg5 {[%clk 0:00:02.2]}
48... Rxf6 {[%clk 0:00:03.8]} 49. Rb1 {[%clk 0:00:02.8]} 49... Rg6 {[%clk
0:00:04]} 50. h4 {[%clk 0:00:01.2]} 50... Bxg2 {[%clk 0:00:03.2]} 0-1